[Event "Late-Titled-Tuesday-Blitz-March-19-2024"]
[Site "Chess.com"]
[Date "2024.03.19"]
[Round "5"]
[White "Oleksandr_Bortnyk"]
[Black "Fonsofan"]
[Result "1-0"]
[WhiteElo "3069"]
[BlackElo "2731"]
[TimeControl "180+1"]
[EndTime "14:55:40 PDT"]
[Termination "Oleksandr_Bortnyk won on time"]

1. e4 {[%clk 0:02:44.3]} 1... d6 {[%clk 0:02:59.3]} 2. d4 {[%clk 0:02:41.9]}
2... Nf6 {[%clk 0:02:59.8]} 3. Nc3 {[%clk 0:02:31.3]} 3... e5 {[%clk 0:03:00.1]}
4. Nf3 {[%clk 0:02:29.1]} 4... Nbd7 {[%clk 0:02:59.8]} 5. Bc4 {[%clk 0:02:28.6]}
5... Be7 {[%clk 0:03:00.3]} 6. O-O {[%clk 0:02:25.2]} 6... O-O {[%clk
0:03:00.9]} 7. Re1 {[%clk 0:02:24.1]} 7... c6 {[%clk 0:03:00.8]} 8. a4 {[%clk
0:02:24.6]} 8... b6 {[%clk 0:03:01.4]} 9. h3 {[%clk 0:02:23.2]} 9... a6 {[%clk
0:03:01.6]} 10. Bb3 {[%clk 0:02:17.2]} 10... Bb7 {[%clk 0:03:01.4]} 11. Be3
{[%clk 0:02:13.9]} 11... b5 {[%clk 0:02:59.1]} 12. dxe5 {[%clk 0:02:07.8]} 12...
dxe5 {[%clk 0:02:55]} 13. axb5 {[%clk 0:02:05.4]} 13... cxb5 {[%clk 0:02:37.5]}
14. Nd5 {[%clk 0:01:39.3]} 14... Nxe4 {[%clk 0:02:34.4]} 15. Nxe5 {[%clk
0:01:37.5]} 15... Nxe5 {[%clk 0:02:10.7]} 16. Bb6 {[%clk 0:01:37.4]} 16... Qd6
{[%clk 0:01:10.3]} 17. Bc7 {[%clk 0:01:34.4]} 17... Qc5 {[%clk 0:01:04.1]} 18.
Rxe4 {[%clk 0:01:17.5]} 18... Bxd5 {[%clk 0:01:01.1]} 19. Rxe5 {[%clk
0:00:34.8]} 19... Qxc7 {[%clk 0:00:57.5]} 20. Rxd5 {[%clk 0:00:35.5]} 20... Rfd8
{[%clk 0:00:38.6]} 21. Qf3 {[%clk 0:00:31.4]} 21... Bf6 {[%clk 0:00:37.1]} 22.
Rxd8+ {[%clk 0:00:30.5]} 22... Rxd8 {[%clk 0:00:36.4]} 23. Rxa6 {[%clk
0:00:28.8]} 23... Bxb2 {[%clk 0:00:34.7]} 24. g3 {[%clk 0:00:14.8]} 24... g6
{[%clk 0:00:32.6]} 25. h4 {[%clk 0:00:13.2]} 25... Qd7 {[%clk 0:00:20.9]} 26.
Kg2 {[%clk 0:00:12.1]} 26... b4 {[%clk 0:00:18.5]} 27. h5 {[%clk 0:00:10.7]}
27... Kg7 {[%clk 0:00:19]} 28. Rb6 {[%clk 0:00:07.4]} 28... Rf8 {[%clk
0:00:06.4]} 29. Rb7 {[%clk 0:00:04.4]} 29... Qf5 {[%clk 0:00:04.1]} 30. Qxf5
{[%clk 0:00:02.7]} 30... gxf5 {[%clk 0:00:05]} 31. Rxb4 {[%clk 0:00:03.1]} 31...
Bf6 {[%clk 0:00:02.3]} 32. Rb7 {[%clk 0:00:02.6]} 32... Kh6 {[%clk 0:00:02.2]}
33. Bxf7 {[%clk 0:00:02.8]} 33... f4 {[%clk 0:00:02.6]} 34. gxf4 {[%clk
0:00:02.9]} 34... Bd4 {[%clk 0:00:01.2]} 35. c4 {[%clk 0:00:02.1]} 35... Bg7
{[%clk 0:00:02]} 36. Kf3 {[%clk 0:00:02.1]} 36... Rc8 {[%clk 0:00:02.7]} 37. Kg4
{[%clk 0:00:02.1]} 37... Rc5 {[%clk 0:00:03]} 38. Bd5 {[%clk 0:00:02.7]} 38...
Bf6 {[%clk 0:00:02.7]} 39. Rb6 {[%clk 0:00:02.2]} 39... Kg7 {[%clk 0:00:02.4]}
40. h6+ {[%clk 0:00:03.1]} 40... Kg6 {[%clk 0:00:02.8]} 41. Be4+ {[%clk
0:00:03.9]} 41... Kf7 {[%clk 0:00:02.3]} 42. Rb7+ {[%clk 0:00:04.6]} 42... Be7
{[%clk 0:00:01.9]} 43. Bxh7 {[%clk 0:00:05.1]} 43... Rc6 {[%clk 0:00:02.4]} 44.
Bg8+ {[%clk 0:00:03.1]} 44... Kf8 {[%clk 0:00:02.5]} 45. h7 {[%clk 0:00:03.3]}
45... Bf6 {[%clk 0:00:02.9]} 46. Rf7+ {[%clk 0:00:03.8]} 1-0

[Event "Late-Titled-Tuesday-Blitz-March-19-2024"]
[Site "Chess.com"]
[Date "2024.03.19"]
[Round "5"]
[White "Masterisback04"]
[Black "SnekkerAndersen"]
[Result "0-1"]
[WhiteElo "1940"]
[BlackElo "2706"]
[TimeControl "180+1"]
[EndTime "14:55:41 PDT"]
[Termination "SnekkerAndersen won on time"]

1. e4 {[%clk 0:03:00.9]} 1... e5 {[%clk 0:02:59.1]} 2. Nc3 {[%clk 0:03:00.2]}
2... Nf6 {[%clk 0:02:58.6]} 3. f4 {[%clk 0:03:00.2]} 3... d5 {[%clk 0:02:59.2]}
4. fxe5 {[%clk 0:03:00.5]} 4... Nxe4 {[%clk 0:02:58.6]} 5. Qf3 {[%clk
0:02:59.9]} 5... Nxc3 {[%clk 0:02:56.9]} 6. dxc3 {[%clk 0:03:00.4]} 6... Be6
{[%clk 0:02:56.9]} 7. Bf4 {[%clk 0:02:59.4]} 7... c6 {[%clk 0:02:55.7]} 8. O-O-O
{[%clk 0:02:54.6]} 8... Qa5 {[%clk 0:02:55.7]} 9. Kb1 {[%clk 0:02:54.6]} 9...
Nd7 {[%clk 0:02:56]} 10. Qg3 {[%clk 0:02:36.3]} 10... O-O-O {[%clk 0:02:50.9]}
11. Nf3 {[%clk 0:02:36]} 11... Nc5 {[%clk 0:02:51.1]} 12. Nd4 {[%clk 0:02:30]}
12... Be7 {[%clk 0:02:46.7]} 13. Nb3 {[%clk 0:02:15]} 13... Nxb3 {[%clk
0:02:44.2]} 14. axb3 {[%clk 0:02:14.4]} 14... h6 {[%clk 0:02:42.5]} 15. h4
{[%clk 0:02:12.2]} 15... Kb8 {[%clk 0:02:42]} 16. Bd3 {[%clk 0:02:11.7]} 16...
Ka8 {[%clk 0:02:38.8]} 17. h5 {[%clk 0:02:04.7]} 17... Qc7 {[%clk 0:02:26]} 18.
Qf2 {[%clk 0:01:35.9]} 18... Qb6 {[%clk 0:02:18.3]} 19. Qe2 {[%clk 0:01:11.9]}
19... c5 {[%clk 0:02:16.7]} 20. c4 {[%clk 0:01:12.2]} 20... dxc4 {[%clk
0:02:08.8]} 21. Bxc4 {[%clk 0:01:10.3]} 21... a6 {[%clk 0:02:08.9]} 22. Bxe6
{[%clk 0:00:48.6]} 22... Qxe6 {[%clk 0:02:08.6]} 23. Rxd8+ {[%clk 0:00:43.6]}
23... Rxd8 {[%clk 0:02:08.1]} 24. Rd1 {[%clk 0:00:43.3]} 24... Rxd1+ {[%clk
0:02:04.7]} 25. Qxd1 {[%clk 0:00:43.2]} 25... Ka7 {[%clk 0:02:05.3]} 26. g3
{[%clk 0:00:37.4]} 26... b6 {[%clk 0:01:45.7]} 27. c4 {[%clk 0:00:36.6]} 27...
Kb7 {[%clk 0:01:45.5]} 28. Qf3+ {[%clk 0:00:35.8]} 28... Qc6 {[%clk 0:01:45.7]}
29. Qg4 {[%clk 0:00:34.6]} 29... Qe4+ {[%clk 0:01:42.8]} 30. Ka2 {[%clk
0:00:31.5]} 30... Qc6 {[%clk 0:01:15]} 31. Qxg7 {[%clk 0:00:30.2]} 31... b5
{[%clk 0:01:15.5]} 32. Qxf7 {[%clk 0:00:28.9]} 32... Qc7 {[%clk 0:01:12.9]} 33.
Qd5+ {[%clk 0:00:12.5]} 33... Ka7 {[%clk 0:01:09.5]} 34. Bxh6 {[%clk 0:00:08.9]}
34... Qa5+ {[%clk 0:01:08.1]} 35. Kb1 {[%clk 0:00:09]} 35... Qe1+ {[%clk
0:01:08.7]} 36. Kc2 {[%clk 0:00:07.3]} 36... Kb8 {[%clk 0:01:04.4]} 37. Bf4
{[%clk 0:00:05.9]} 37... Qe2+ {[%clk 0:01:03.4]} 38. Kb1 {[%clk 0:00:05.8]}
38... Qe1+ {[%clk 0:01:03.8]} 39. Kc2 {[%clk 0:00:06.3]} 39... Qe2+ {[%clk
0:01:04.1]} 40. Qd2 {[%clk 0:00:04.2]} 40... Qe4+ {[%clk 0:01:03.7]} 41. Qd3
{[%clk 0:00:04.4]} 41... Qg2+ {[%clk 0:01:04]} 42. Kb1 {[%clk 0:00:04.8]} 42...
Kc8 {[%clk 0:01:02.4]} 43. Qf5+ {[%clk 0:00:03.1]} 43... Kd8 {[%clk 0:01:00.5]}
44. e6 {[%clk 0:00:03.3]} 44... Qf1+ {[%clk 0:00:52.6]} 45. Ka2 {[%clk
0:00:03.1]} 45... bxc4 {[%clk 0:00:40.4]} 46. Qd5+ {[%clk 0:00:03.2]} 46... Ke8
{[%clk 0:00:40.7]} 47. bxc4 {[%clk 0:00:02.1]} 47... Qe1 {[%clk 0:00:38.8]} 48.
Qc6+ {[%clk 0:00:02.2]} 48... Kf8 {[%clk 0:00:39.1]} 49. Qc8+ {[%clk 0:00:02.4]}
49... Kg7 {[%clk 0:00:39.6]} 50. Qd7 {[%clk 0:00:02.5]} 50... Qa5+ {[%clk
0:00:38.9]} 51. Kb3 {[%clk 0:00:02.5]} 51... Qb4+ {[%clk 0:00:39.4]} 52. Ka2
{[%clk 0:00:02.8]} 52... Qxc4+ {[%clk 0:00:39.6]} 53. Kb1 {[%clk 0:00:03.4]}
53... Qe4+ {[%clk 0:00:39.2]} 54. Kc1 {[%clk 0:00:03.7]} 54... Qe1+ {[%clk
0:00:39.4]} 55. Kc2 {[%clk 0:00:04.2]} 55... Qe2+ {[%clk 0:00:40]} 56. Bd2
{[%clk 0:00:03.8]} 56... Qc4+ {[%clk 0:00:40]} 57. Bc3+ {[%clk 0:00:03]} 57...
Kh6 {[%clk 0:00:39.1]} 58. g4 {[%clk 0:00:01]} 58... Qe4+ {[%clk 0:00:39.4]} 0-1

[Event "Late-Titled-Tuesday-Blitz-March-19-2024"]
[Site "Chess.com"]
[Date "2024.03.19"]
[Round "5"]
[White "Lukianoo"]
[Black "amanmuhammethommadov"]
[Result "1-0"]
[WhiteElo "2842"]
[BlackElo "2648"]
[TimeControl "180+1"]
[EndTime "14:55:42 PDT"]
[Termination "Lukianoo won by resignation"]

1. e4 {[%clk 0:03:00.9]} 1... c5 {[%clk 0:02:59.3]} 2. Nf3 {[%clk 0:03:00.4]}
2... Nc6 {[%clk 0:02:59.7]} 3. Bb5 {[%clk 0:03:00]} 3... e6 {[%clk 0:03:00.2]}
4. O-O {[%clk 0:02:59.9]} 4... Nge7 {[%clk 0:03:00.4]} 5. Re1 {[%clk 0:02:59.8]}
5... a6 {[%clk 0:03:00.9]} 6. Bf1 {[%clk 0:03:00]} 6... d5 {[%clk 0:03:01.4]} 7.
exd5 {[%clk 0:03:00.1]} 7... Nxd5 {[%clk 0:03:02.3]} 8. d4 {[%clk 0:03:00.4]}
8... Nf6 {[%clk 0:03:02.7]} 9. Be3 {[%clk 0:02:55.7]} 9... Be7 {[%clk
0:03:02.6]} 10. c3 {[%clk 0:02:46.4]} 10... cxd4 {[%clk 0:03:00.9]} 11. Nxd4
{[%clk 0:02:46.4]} 11... Nxd4 {[%clk 0:02:59.9]} 12. Bxd4 {[%clk 0:02:47.3]}
12... O-O {[%clk 0:03:00.1]} 13. Nd2 {[%clk 0:02:46]} 13... Bd7 {[%clk
0:02:59.6]} 14. Nc4 {[%clk 0:02:44.9]} 14... Nd5 {[%clk 0:02:22.5]} 15. Qf3
{[%clk 0:02:28.2]} 15... f6 {[%clk 0:02:18.7]} 16. Rad1 {[%clk 0:02:22.5]} 16...
Rc8 {[%clk 0:02:15]} 17. Nb6 {[%clk 0:02:15.3]} 17... Nxb6 {[%clk 0:02:12.8]}
18. Bxb6 {[%clk 0:02:16.2]} 18... Qxb6 {[%clk 0:02:06.1]} 19. Rxd7 {[%clk
0:02:15.9]} 19... Rc7 {[%clk 0:02:01.2]} 20. Rxe6 {[%clk 0:02:09.8]} 20... Qxe6
{[%clk 0:01:57.9]} 21. Rxc7 {[%clk 0:02:09.9]} 21... b5 {[%clk 0:01:57.5]} 22.
Qc6 {[%clk 0:02:02.8]} 22... Qxc6 {[%clk 0:01:49.1]} 23. Rxc6 {[%clk 0:02:03.7]}
23... Rd8 {[%clk 0:01:48.8]} 24. Rxa6 {[%clk 0:01:48.7]} 24... Rd2 {[%clk
0:01:48.3]} 25. Re6 {[%clk 0:01:46.7]} 25... Kf7 {[%clk 0:01:24.9]} 26. Re2
{[%clk 0:01:46.1]} 26... Rd1 {[%clk 0:01:25.2]} 27. g3 {[%clk 0:01:44.6]} 27...
b4 {[%clk 0:01:24.1]} 28. cxb4 {[%clk 0:01:43.5]} 28... Bxb4 {[%clk 0:01:25]}
29. Kg2 {[%clk 0:01:43.5]} 29... Bc5 {[%clk 0:01:24.2]} 30. Rc2 {[%clk
0:01:41.7]} 30... Bd4 {[%clk 0:01:24.2]} 31. a4 {[%clk 0:01:37.9]} 31... Ra1
{[%clk 0:01:21]} 32. b3 {[%clk 0:01:32.7]} 32... Ke6 {[%clk 0:01:21.1]} 33. Rd2
{[%clk 0:01:29.3]} 33... Ke5 {[%clk 0:01:20.7]} 34. Bc4 {[%clk 0:01:22.7]} 34...
g5 {[%clk 0:01:14.8]} 35. Kf3 {[%clk 0:01:15.9]} 35... f5 {[%clk 0:01:13.3]} 36.
h3 {[%clk 0:01:13.9]} 36... h5 {[%clk 0:01:12.4]} 37. Re2+ {[%clk 0:01:12]}
37... Kd6 {[%clk 0:01:12.3]} 38. g4 {[%clk 0:01:11]} 38... fxg4+ {[%clk
0:01:11.1]} 39. hxg4 {[%clk 0:01:11.9]} 39... h4 {[%clk 0:01:12]} 40. Kg2 {[%clk
0:01:11.9]} 40... Kc5 {[%clk 0:01:07.3]} 41. Rd2 {[%clk 0:01:08.6]} 41... Rc1
{[%clk 0:01:02]} 42. a5 {[%clk 0:01:07.4]} 42... Ra1 {[%clk 0:00:51.3]} 43. a6
{[%clk 0:01:07.1]} 43... Ra3 {[%clk 0:00:45.8]} 44. Re2 {[%clk 0:00:55.9]} 44...
Ra1 {[%clk 0:00:45.6]} 45. Re7 {[%clk 0:00:55.5]} 45... Ra2 {[%clk 0:00:43.9]}
46. Rf7 {[%clk 0:00:55.7]} 46... Kb4 {[%clk 0:00:43.9]} 47. Rf5 {[%clk
0:00:51.5]} 47... Be3 {[%clk 0:00:38.2]} 48. Rb5+ {[%clk 0:00:34.5]} 48... Kc3
{[%clk 0:00:38.2]} 49. Rf5 {[%clk 0:00:27.1]} 49... Bf4 {[%clk 0:00:38.5]} 50.
Rf7 {[%clk 0:00:22.6]} 50... Be3 {[%clk 0:00:30.4]} 51. Rf3 {[%clk 0:00:19.2]}
51... Rxf2+ {[%clk 0:00:21.8]} 52. Rxf2 {[%clk 0:00:18.4]} 52... h3+ {[%clk
0:00:22.7]} 53. Kf1 {[%clk 0:00:16.6]} 1-0

[Event "Late-Titled-Tuesday-Blitz-March-19-2024"]
[Site "Chess.com"]
[Date "2024.03.19"]
[Round "5"]
[White "Alex_Banzea"]
[Black "ashookk"]
[Result "1-0"]
[WhiteElo "2589"]
[BlackElo "2344"]
[TimeControl "180+1"]
[EndTime "14:55:42 PDT"]
[Termination "Alex_Banzea won on time"]

1. d4 {[%clk 0:03:00.9]} 1... Nf6 {[%clk 0:02:59.5]} 2. Nc3 {[%clk 0:03:01]}
2... d5 {[%clk 0:02:58.7]} 3. Bf4 {[%clk 0:03:01.7]} 3... e6 {[%clk 0:02:55.4]}
4. e3 {[%clk 0:03:01.8]} 4... Bd6 {[%clk 0:02:55]} 5. Nf3 {[%clk 0:03:01.9]}
5... Ne4 {[%clk 0:02:51.3]} 6. Nxe4 {[%clk 0:02:28.5]} 6... dxe4 {[%clk
0:02:50]} 7. Bxd6 {[%clk 0:02:28.4]} 7... cxd6 {[%clk 0:02:46.1]} 8. Nd2 {[%clk
0:02:28.8]} 8... f5 {[%clk 0:02:28.1]} 9. Be2 {[%clk 0:02:13.3]} 9... O-O {[%clk
0:02:26.5]} 10. O-O {[%clk 0:02:12.9]} 10... d5 {[%clk 0:02:12.7]} 11. f4 {[%clk
0:02:04.1]} 11... exf3 {[%clk 0:01:39.1]} 12. Nxf3 {[%clk 0:02:03.8]} 12... Nc6
{[%clk 0:01:39.2]} 13. Bb5 {[%clk 0:02:00.5]} 13... Ne7 {[%clk 0:01:32.4]} 14.
Be2 {[%clk 0:01:36.1]} 14... Qb6 {[%clk 0:01:11.8]} 15. b3 {[%clk 0:01:21]}
15... Bd7 {[%clk 0:01:00.2]} 16. c4 {[%clk 0:01:19.9]} 16... dxc4 {[%clk
0:00:57.2]} 17. bxc4 {[%clk 0:01:09.2]} 17... Bc6 {[%clk 0:00:50.6]} 18. Ne5
{[%clk 0:01:09.4]} 18... Ng6 {[%clk 0:00:45.4]} 19. Rb1 {[%clk 0:01:06.2]} 19...
Qc7 {[%clk 0:00:43.3]} 20. Nxc6 {[%clk 0:01:06.1]} 20... bxc6 {[%clk 0:00:40.4]}
21. Bf3 {[%clk 0:00:54.8]} 21... Rab8 {[%clk 0:00:40.3]} 22. Qa4 {[%clk
0:00:54]} 22... c5 {[%clk 0:00:40.5]} 23. Qc6 {[%clk 0:00:36.9]} 23... Qxc6
{[%clk 0:00:19.7]} 24. Bxc6 {[%clk 0:00:37.8]} 24... cxd4 {[%clk 0:00:19.6]} 25.
exd4 {[%clk 0:00:38.1]} 25... Kf7 {[%clk 0:00:20]} 26. Bf3 {[%clk 0:00:26.2]}
26... Rfd8 {[%clk 0:00:17.2]} 27. d5 {[%clk 0:00:15.7]} 27... exd5 {[%clk
0:00:16.5]} 28. Bxd5+ {[%clk 0:00:15.4]} 28... Kf6 {[%clk 0:00:17]} 29. Rbe1
{[%clk 0:00:14.6]} 29... Re8 {[%clk 0:00:13.4]} 30. Rxe8 {[%clk 0:00:12.7]}
30... Rxe8 {[%clk 0:00:14.3]} 31. Rb1 {[%clk 0:00:12.7]} 31... Nf4 {[%clk
0:00:14.3]} 32. Rb7 {[%clk 0:00:09.4]} 32... Nxd5 {[%clk 0:00:10.9]} 33. cxd5
{[%clk 0:00:10.3]} 33... Re2 {[%clk 0:00:10.8]} 34. Rxa7 {[%clk 0:00:09.4]}
34... Rd2 {[%clk 0:00:11.5]} 35. Ra5 {[%clk 0:00:07]} 35... Ke5 {[%clk
0:00:10.8]} 36. d6+ {[%clk 0:00:06.2]} 36... Ke6 {[%clk 0:00:09.2]} 37. Ra6
{[%clk 0:00:05.4]} 37... Rxd6 {[%clk 0:00:08.9]} 38. Rxd6+ {[%clk 0:00:05.2]}
38... Kxd6 {[%clk 0:00:09.4]} 39. Kf2 {[%clk 0:00:06]} 39... g5 {[%clk
0:00:09.7]} 40. Ke3 {[%clk 0:00:06.3]} 40... h5 {[%clk 0:00:09.7]} 41. a4 {[%clk
0:00:06.4]} 41... Ke5 {[%clk 0:00:06.6]} 42. a5 {[%clk 0:00:06.8]} 42... f4+
{[%clk 0:00:07.1]} 43. Kf3 {[%clk 0:00:06.8]} 43... g4+ {[%clk 0:00:07]} 44. Ke2
{[%clk 0:00:06.9]} 44... Kd6 {[%clk 0:00:05.8]} 45. Kd3 {[%clk 0:00:07]} 45...
h4 {[%clk 0:00:05.6]} 46. Ke4 {[%clk 0:00:06.6]} 46... g3 {[%clk 0:00:04.9]} 47.
h3 {[%clk 0:00:06.4]} 1-0

[Event "Late-Titled-Tuesday-Blitz-March-19-2024"]
[Site "Chess.com"]
[Date "2024.03.19"]
[Round "5"]
[White "MetiForce"]
[Black "GodzillaChessYoutube"]
[Result "1-0"]
[WhiteElo "2916"]
[BlackElo "2696"]
[TimeControl "180+1"]
[EndTime "14:55:44 PDT"]
[Termination "MetiForce won by resignation"]

1. d4 {[%clk 0:03:00.9]} 1... Nf6 {[%clk 0:02:59.1]} 2. c4 {[%clk 0:03:01]} 2...
e6 {[%clk 0:02:59.1]} 3. Nf3 {[%clk 0:03:00]} 3... Bb4+ {[%clk 0:02:58.8]} 4.
Bd2 {[%clk 0:02:59.3]} 4... Qe7 {[%clk 0:02:58.6]} 5. g3 {[%clk 0:02:56.1]} 5...
Nc6 {[%clk 0:02:58.9]} 6. Bg2 {[%clk 0:02:56.2]} 6... Bxd2+ {[%clk 0:02:59.5]}
7. Qxd2 {[%clk 0:02:56]} 7... Ne4 {[%clk 0:02:59]} 8. Qc1 {[%clk 0:02:17.8]}
8... Qb4+ {[%clk 0:02:59.9]} 9. Nc3 {[%clk 0:02:17.8]} 9... Nxc3 {[%clk
0:02:59.8]} 10. Qxc3 {[%clk 0:02:18.6]} 10... Qxc3+ {[%clk 0:03:00.1]} 11. bxc3
{[%clk 0:02:19.5]} 11... d6 {[%clk 0:03:00.4]} 12. Nd2 {[%clk 0:02:17]} 12...
Na5 {[%clk 0:02:37.4]} 13. Rb1 {[%clk 0:02:13.8]} 13... Rb8 {[%clk 0:02:37]} 14.
Rb4 {[%clk 0:01:37.7]} 14... c5 {[%clk 0:02:10.1]} 15. Rb2 {[%clk 0:01:24]}
15... b6 {[%clk 0:02:00.3]} 16. Be4 {[%clk 0:01:24]} 16... Ke7 {[%clk
0:01:59.1]} 17. O-O {[%clk 0:01:21.9]} 17... Ba6 {[%clk 0:01:56.9]} 18. Bd3
{[%clk 0:01:22]} 18... Rbc8 {[%clk 0:01:47.2]} 19. d5 {[%clk 0:01:19.7]} 19...
e5 {[%clk 0:01:34.8]} 20. f4 {[%clk 0:01:19.4]} 20... f6 {[%clk 0:01:34.8]} 21.
e4 {[%clk 0:01:18.6]} 21... g5 {[%clk 0:01:26.4]} 22. fxg5 {[%clk 0:01:16.8]}
22... fxg5 {[%clk 0:01:26.3]} 23. Rf5 {[%clk 0:01:17.5]} 23... h6 {[%clk
0:01:26.1]} 24. Rb1 {[%clk 0:01:14.3]} 24... Rcf8 {[%clk 0:01:26.1]} 25. Rbf1
{[%clk 0:01:14.1]} 25... Bc8 {[%clk 0:01:22.1]} 26. Rxf8 {[%clk 0:01:04.9]}
26... Rxf8 {[%clk 0:01:23]} 27. Rxf8 {[%clk 0:00:59.3]} 27... Kxf8 {[%clk
0:01:23.9]} 28. Kf2 {[%clk 0:00:59.9]} 28... Ba6 {[%clk 0:01:05.7]} 29. Ke3
{[%clk 0:00:59.3]} 29... Ke7 {[%clk 0:01:04.3]} 30. Be2 {[%clk 0:00:59.4]} 30...
Kf6 {[%clk 0:01:02.4]} 31. Kd3 {[%clk 0:00:59]} 31... Kg6 {[%clk 0:00:47.5]} 32.
Bg4 {[%clk 0:00:53.2]} 32... Kf6 {[%clk 0:00:26.3]} 33. Bd7 {[%clk 0:00:50.5]}
33... Ke7 {[%clk 0:00:25.3]} 34. Bb5 {[%clk 0:00:50.9]} 34... Bc8 {[%clk
0:00:25.4]} 35. Nf1 {[%clk 0:00:49.5]} 35... Bh3 {[%clk 0:00:13.4]} 36. Ne3
{[%clk 0:00:49.6]} 36... Nb7 {[%clk 0:00:12.9]} 37. g4 {[%clk 0:00:40.5]} 37...
Kf6 {[%clk 0:00:10.3]} 38. Be8 {[%clk 0:00:22]} 38... Na5 {[%clk 0:00:08]} 39.
Bh5 {[%clk 0:00:18.1]} 39... Nb7 {[%clk 0:00:06.5]} 40. Ke2 {[%clk 0:00:18]}
40... Na5 {[%clk 0:00:05.1]} 41. Kf2 {[%clk 0:00:18]} 41... Nb7 {[%clk
0:00:04.2]} 42. Kg3 {[%clk 0:00:18.3]} 42... Bxg4 {[%clk 0:00:03.7]} 43. Bxg4
{[%clk 0:00:18.3]} 43... Kg6 {[%clk 0:00:02.8]} 44. Bc8 {[%clk 0:00:17.4]} 44...
Na5 {[%clk 0:00:02.5]} 45. Ba6 {[%clk 0:00:16.9]} 45... h5 {[%clk 0:00:02.7]}
46. Nf5 {[%clk 0:00:17.5]} 46... h4+ {[%clk 0:00:03.2]} 47. Kg4 {[%clk
0:00:18.4]} 47... Kf6 {[%clk 0:00:03.4]} 48. Nxd6 {[%clk 0:00:18.9]} 1-0

[Event "Late-Titled-Tuesday-Blitz-March-19-2024"]
[Site "Chess.com"]
[Date "2024.03.19"]
[Round "5"]
[White "ozates"]
[Black "FREZZY23"]
[Result "1-0"]
[WhiteElo "2557"]
[BlackElo "2374"]
[TimeControl "180+1"]
[EndTime "14:55:46 PDT"]
[Termination "ozates won on time"]

1. e4 {[%clk 0:02:50.5]} 1... c5 {[%clk 0:02:58.3]} 2. Nf3 {[%clk 0:02:49.3]}
2... d6 {[%clk 0:02:58.3]} 3. d4 {[%clk 0:02:46.4]} 3... cxd4 {[%clk 0:02:59.2]}
4. Nxd4 {[%clk 0:02:47.1]} 4... Nf6 {[%clk 0:02:59.1]} 5. Nc3 {[%clk 0:02:46.8]}
5... a6 {[%clk 0:02:59.2]} 6. Be2 {[%clk 0:02:46.1]} 6... e5 {[%clk 0:02:53.3]}
7. Nf3 {[%clk 0:02:45.3]} 7... Be7 {[%clk 0:02:53.1]} 8. O-O {[%clk 0:02:44.8]}
8... O-O {[%clk 0:02:52.1]} 9. Bg5 {[%clk 0:02:45.4]} 9... Be6 {[%clk
0:02:48.4]} 10. Bxf6 {[%clk 0:02:42.7]} 10... Bxf6 {[%clk 0:02:49.3]} 11. Nd5
{[%clk 0:02:43.3]} 11... Bxd5 {[%clk 0:02:47.5]} 12. Qxd5 {[%clk 0:02:42.9]}
12... Nc6 {[%clk 0:02:47.6]} 13. c3 {[%clk 0:02:39.1]} 13... Qc7 {[%clk
0:02:44.7]} 14. Rad1 {[%clk 0:02:30.5]} 14... Rad8 {[%clk 0:02:43.9]} 15. Rd2
{[%clk 0:02:27.7]} 15... Ne7 {[%clk 0:02:42.3]} 16. Qb3 {[%clk 0:02:25.5]} 16...
Qc6 {[%clk 0:02:41.8]} 17. Bd3 {[%clk 0:02:13.6]} 17... b5 {[%clk 0:02:35.5]}
18. Rfd1 {[%clk 0:02:12.8]} 18... g6 {[%clk 0:02:34.2]} 19. Bc2 {[%clk
0:02:08.5]} 19... Kg7 {[%clk 0:02:28.4]} 20. Qb4 {[%clk 0:02:02.4]} 20... Nc8
{[%clk 0:02:27.4]} 21. Bb3 {[%clk 0:01:59.5]} 21... Be7 {[%clk 0:02:27]} 22. Bd5
{[%clk 0:01:59.3]} 22... Qc7 {[%clk 0:02:26]} 23. a4 {[%clk 0:01:59.2]} 23...
bxa4 {[%clk 0:02:15]} 24. Qxa4 {[%clk 0:02:00.1]} 24... Nb6 {[%clk 0:02:13.7]}
25. Qa5 {[%clk 0:01:59.7]} 25... Nxd5 {[%clk 0:02:12.8]} 26. Rxd5 {[%clk
0:02:00.6]} 26... Qb7 {[%clk 0:02:11.5]} 27. b4 {[%clk 0:01:59.2]} 27... f5
{[%clk 0:02:09.7]} 28. exf5 {[%clk 0:01:56.9]} 28... Rxf5 {[%clk 0:02:09]} 29.
Nxe5 {[%clk 0:01:53.6]} 29... Rc8 {[%clk 0:01:41.3]} 30. Nf3 {[%clk 0:01:41]}
30... Rxd5 {[%clk 0:01:40.1]} 31. Rxd5 {[%clk 0:01:40.8]} 31... Rxc3 {[%clk
0:01:36.2]} 32. h4 {[%clk 0:01:41.1]} 32... Qd7 {[%clk 0:01:05.7]} 33. h5 {[%clk
0:01:33.5]} 33... Rc1+ {[%clk 0:01:00]} 34. Kh2 {[%clk 0:01:33.4]} 34... Qg4
{[%clk 0:01:00.5]} 35. Rd4 {[%clk 0:01:14.2]} 35... Qxh5+ {[%clk 0:00:50.5]} 36.
Qxh5 {[%clk 0:01:13.8]} 36... gxh5 {[%clk 0:00:51.4]} 37. Re4 {[%clk 0:01:05.5]}
37... Kf7 {[%clk 0:00:43.7]} 38. g3 {[%clk 0:01:01.9]} 38... d5 {[%clk
0:00:41.6]} 39. Rf4+ {[%clk 0:01:01]} 39... Ke6 {[%clk 0:00:40.8]} 40. Nd4+
{[%clk 0:01:00.3]} 40... Ke5 {[%clk 0:00:38.6]} 41. Nf3+ {[%clk 0:00:56.7]}
41... Kd6 {[%clk 0:00:31.7]} 42. Rf5 {[%clk 0:00:56.9]} 42... h4 {[%clk
0:00:26.2]} 43. gxh4 {[%clk 0:00:56.1]} 43... Rc4 {[%clk 0:00:24.6]} 44. Rh5
{[%clk 0:00:55.9]} 44... Rxb4 {[%clk 0:00:23.7]} 45. Rxh7 {[%clk 0:00:56.5]}
45... Ke6 {[%clk 0:00:21.8]} 46. Rh6+ {[%clk 0:00:56]} 46... Bf6 {[%clk
0:00:21.3]} 47. h5 {[%clk 0:00:53.7]} 47... a5 {[%clk 0:00:20.2]} 48. Rg6 {[%clk
0:00:53.5]} 48... a4 {[%clk 0:00:18.6]} 49. h6 {[%clk 0:00:54]} 49... Rb8 {[%clk
0:00:18.4]} 50. Rg4 {[%clk 0:00:49.1]} 50... Ra8 {[%clk 0:00:15.2]} 51. h7
{[%clk 0:00:37.1]} 51... a3 {[%clk 0:00:15]} 52. Rg8 {[%clk 0:00:37]} 52... Ra7
{[%clk 0:00:08.1]} 53. h8=Q {[%clk 0:00:32.5]} 53... Bxh8 {[%clk 0:00:07.6]} 54.
Rxh8 {[%clk 0:00:33.4]} 54... a2 {[%clk 0:00:08.1]} 55. Nd4+ {[%clk 0:00:33.3]}
55... Kf7 {[%clk 0:00:07.5]} 56. Rh7+ {[%clk 0:00:33.1]} 1-0